bitfinex-derivatives/quotes_ETHF0:USTF0_20250501
["timestamp","ask_amount","ask_price","bid_price","bid_amount"]
[1746126123880,3.2368,1854.7,1854.6,4.63302]
[1746126125386,7.52256,1854.7,1854.6,4.63302]
[1746126125579,6.4446,1854.7,1854.6,4.63302]
[1746126125780,7.52256,1854.7,1854.6,4.63302]
[1746126126080,7.52256,1854.7,1854.5,1.07803]
[1746126126081,1.07805,1854.6,1854.5,1.07803]
[1746126126281,4.16945,1854.6,1854.5,1.07803]
[1746126126686,2.6952,1854.5,1854.0,6.25091]
[1746126126878,2.6952,1854.5,1854.2,1.07825]
[1746126126879,3.2078,1854.3,1854.2,1.07825]
[1746126127283,6.2572,1854.3,1854.2,1.07825]
[1746126127881,9.00869,1854.3,1854.2,1.07825]
[1746126128680,9.00869,1854.3,1854.1,1.07826]
[1746126128885,1.6733,1854.2,1854.1,1.07826]
[1746126130885,2.75155,1854.2,1854.1,1.07826]
[1746126131587,1.07831,1854.1,1854.0,4.63335]
[1746126131780,1.7235,1854.1,1854.0,4.63335]
[1746126135682,1.7235,1854.1,1854.0,3.555]
[1746126135882,2.80181,1854.1,1854.0,3.555]
[1746126136378,2.80181,1854.1,1854.0,4.63337]
[1746126136588,1.7235,1854.1,1854.0,4.63337]
[1746126144482,3.2078,1854.2,1854.1,1.07831]
[1746126144692,1.6847,1854.3,1854.2,1.07825]
[1746126144892,7.5227,1854.6,1854.5,1.07808]
[1746126145198,5.838,1854.6,1854.5,1.07808]
[1746126149198,10.1238,1854.7,1854.6,1.07802]
[1746126149893,6.916,1854.7,1854.6,1.07802]
[1746126150491,5.838,1854.7,1854.6,1.07802]
[1746126151091,6.91596,1854.7,1854.6,1.07802]
[1746126151293,6.91596,1854.7,1854.1,8.59923]
[1746126151294,8.2078,1854.7,1853.4,10.7743417]
[1746126151496,3.2078,1854.4,1853.9,2.69607]
[1746126151693,3.0976,1854.3,1854.2,1.07822]
[1746126151893,4.17579,1854.3,1854.2,3.55]
[1746126152094,3.0976,1854.3,1854.2,4.62825]
[1746126152887,3.0976,1854.3,1854.2,1.07825]
[1746126153089,3.0976,1854.3,1854.2,4.62825]
[1746126154497,3.0976,1854.3,1854.2,3.55]
[1746126154697,4.17579,1854.3,1854.2,3.55]
[1746126155494,3.0976,1854.3,1854.2,3.55]
[1746126155695,4.17579,1854.3,1854.2,3.55]
[1746126156503,4.17579,1854.3,1854.0,5.98282]
[1746126156700,4.17579,1854.3,1854.2,3.55]
[1746126157104,1.07825,1854.2,1854.0,5.98282]
[1746126157302,1.07825,1854.2,1854.1,3.55]
[1746126157502,1.07827,1854.2,1854.1,3.55]
[1746126157703,1.07831,1854.1,1854.0,4.9045]
[1746126157900,1.07831,1854.1,1854.0,3.2078]
[1746126158096,1.07831,1854.1,1854.0,6.7578]
[1746126158701,1.07827,1854.2,1854.0,6.7578]
[1746126159711,1.07827,1854.2,1854.0,7.83616]
[1746126160209,1.07827,1854.2,1854.0,4.62836]
[1746126161205,3.0976,1854.3,1853.9,6.2653]
[1746126161414,1.07833,1854.1,1854.0,3.551]
[1746126161709,1.07829,1854.2,1854.0,4.62936]
[1746126162204,1.07829,1854.2,1854.0,1.07836]
[1746126162409,1.07829,1854.2,1854.1,3.55]
[1746126163902,1.50329163,1854.2,1854.1,3.55]
[1746126164414,0.42499163,1854.2,1854.1,4.62831]
[1746126165114,2.12939163,1854.2,1854.1,4.62831]
[1746126167715,3.20764163,1854.2,1854.1,3.55]
[1746126170525,2.12939163,1854.2,1854.1,4.62831]
[1746126176634,2.12939163,1854.2,1854.1,6.34201]
[1746126177634,2.12939163,1854.2,1854.1,4.62831]
[1746126178832,3.20764163,1854.2,1854.1,3.55]
[1746126179127,1.07843,1853.9,1853.6,3.2078]
[1746126179331,1.07843,1853.9,1853.7,5.0514]
[1746126179532,3.42629163,1853.8,1853.7,6.12994]
[1746126180120,3.42629163,1853.8,1853.7,1.5014]
[1746126180328,3.42629163,1853.8,1853.7,4.62854]
[1746126181033,4.50477163,1853.8,1853.7,3.55]
[1746126181236,4.50477163,1853.8,1853.7,4.62854]
[1746126181428,4.50477163,1853.8,1853.7,3.55]
[1746126181629,4.50477163,1853.8,1853.7,4.62854]
[1746126182834,3.42629163,1853.8,1853.7,4.62854]
[1746126183534,4.50477163,1853.8,1853.7,4.62854]
[1746126184336,9.51431878,1853.8,1853.7,4.62854]
[1746126185537,8.12211878,1853.8,1853.7,4.62854]
[1746126185730,6.51301878,1853.8,1853.7,6.33514]
[1746126186435,6.51301878,1853.8,1853.7,11.33514]
[1746126186633,7.19699636,1854.0,1853.9,1.07842]
[1746126186936,7.19699636,1854.0,1853.9,4.28622]
[1746126187135,7.19699636,1854.0,1853.9,9.28622]
[1746126187334,7.19699636,1854.0,1853.9,4.28622]
[1746126187536,2.76972,1854.3,1854.1,1.07831]
[1746126187537,7.19699636,1854.2,1854.1,1.07831]
[1746126187736,8.88849636,1854.2,1854.1,4.62831]
[1746126188437,9.31321108,1854.2,1854.1,4.62831]
[1746126189136,9.31321108,1854.2,1854.1,3.55]
[1746126189338,9.31321108,1854.2,1854.1,4.62831]
[1746126190045,2.11621472,1854.2,1854.1,4.62831]
[1746126193043,2.11621472,1854.2,1854.1,6.27581]
[1746126193541,0.42471472,1854.2,1854.1,9.48361]
[1746126194347,1.7261,1854.4,1854.3,1.07819]
[1746126194946,2.15068016,1854.4,1854.3,1.07819]
[1746126197548,2.15068016,1854.4,1854.3,5.68499]
[1746126198142,0.42458016,1854.4,1854.3,10.68499]
[1746126198343,7.19699636,1854.7,1854.6,1.07802]
[1746126198543,7.19699636,1854.7,1854.6,4.62502]
[1746126198842,7.62134589,1854.7,1854.6,4.62502]
[1746126199038,7.62134589,1854.7,1854.6,6.02402]
[1746126199558,9.31624589,1854.7,1854.6,6.02402]
[1746126200950,7.62134589,1854.7,1854.6,12.60782]
[1746126201153,8.99624545,1854.9,1854.8,1.0779]
[1746126201844,13.88514545,1855.0,1854.9,1.07784]
[1746126202145,13.88514545,1855.0,1854.9,4.62484]
[1746126202346,13.88514545,1855.0,1854.9,6.20864]
[1746126203254,10.67734545,1855.0,1854.9,9.41644]
[1746126203448,10.67734545,1855.0,1854.9,6.20864]
[1746126205346,10.67734545,1855.0,1854.8,2.46927]
[1746126205542,4.32644,1854.9,1854.7,4.28572]
[1746126205745,3.2562,1854.8,1854.7,1.07792]
[1746126205949,3.2562,1854.8,1854.7,4.62392]
[1746126209553,3.2562,1854.8,1854.7,1.07792]
[1746126209745,3.2562,1854.8,1854.7,4.62392]
[1746126210340,3.2562,1854.8,1854.7,1.07792]
[1746126210547,4.33414,1854.8,1854.6,1.07797]
[1746126210749,1.6674,1854.7,1854.6,1.07802]
[1746126211053,1.6674,1854.7,1854.6,4.62402]
[1746126212856,1.6674,1854.7,1854.5,3.2078]
[1746126213048,7.57014,1854.7,1854.4,1.07811]
[1746126213251,1.07802,1854.6,1854.5,3.546]
[1746126213449,2.75202,1854.6,1854.5,4.62408]
[1746126217955,4.15322,1854.6,1854.5,4.62408]
[1746126218560,4.15322,1854.6,1854.5,3.546]
[1746126220062,4.15322,1854.6,1854.5,4.62408]
[1746126220358,4.15322,1854.6,1854.5,3.546]
[1746126223662,1.07808,1854.5,1854.4,1.07813]
[1746126223857,5.96668,1854.5,1854.4,4.62313]
[1746126224055,7.44928,1854.5,1854.4,4.62313]
[1746126224363,7.44928,1854.5,1854.4,3.545]
[1746126224662,7.44928,1854.5,1854.4,4.62313]
[1746126226462,7.44928,1854.5,1854.4,1.07813]
[1746126226650,7.44928,1854.5,1854.4,4.62313]
[1746126227260,1.6808,1854.5,1854.4,4.62313]
[1746126227467,1.6808,1854.5,1854.4,7.83093]
[1746126227656,1.6808,1854.5,1854.4,10.88703]
[1746126227855,2.75888,1854.5,1854.4,7.67923]
[1746126230762,1.6808,1854.5,1854.4,7.67923]
[1746126230964,3.2078,1854.8,1854.7,1.07796]
[1746126231261,5.97642,1854.8,1854.7,3.545]
[1746126232054,9.56657476,1854.8,1854.7,3.545]
[1746126232455,11.18348476,1854.8,1854.4,1.4585]
[1746126232656,1.07802,1854.6,1854.5,3.545]
[1746126233057,2.76872,1854.6,1854.5,3.545]
[1746126234566,2.76872,1854.6,1854.5,4.62308]
[1746126235368,3.45616665,1854.6,1854.5,4.62308]
[1746126236166,1.07813,1854.5,1854.4,1.07812]
[1746126236469,5.86333,1854.5,1854.4,4.62313]
[1746126236769,5.86333,1854.5,1854.4,3.545]
[1746126237276,5.86333,1854.5,1854.4,4.62313]
[1746126237465,5.86333,1854.5,1854.4,6.16653]
[1746126238176,4.7852,1854.5,1854.4,6.16653]
[1746126238474,5.86328,1854.5,1854.4,6.16653]
[1746126238665,5.86328,1854.5,1854.4,7.84013]
[1746126238666,10.14551424,1854.5,1854.4,7.84013]
[1746126239476,9.06743424,1854.5,1854.4,7.84013]
[1746126239778,10.14551424,1854.5,1854.4,7.84013]
[1746126240273,9.06743424,1854.5,1854.4,7.84013]
[1746126240571,10.14551424,1854.5,1854.4,7.84013]
[1746126242475,5.86328,1854.5,1854.4,7.84013]
[1746126242773,2.65548,1854.5,1854.4,7.84013]
[1746126243773,4.67281759,1854.6,1854.5,1.07808]
[1746126244075,4.67280759,1854.6,1854.5,2.71268]
[1746126244577,3.59478759,1854.6,1854.5,2.71268]
[1746126245270,5.30018759,1854.6,1854.5,1.6346]
[1746126245476,5.30018759,1854.6,1854.4,5.0884]
[1746126245675,1.7054,1854.5,1854.4,5.0884]
[1746126245876,1.7054,1854.5,1854.4,6.16648]
[1746126246179,2.78348,1854.5,1854.4,6.16648]
[1746126247977,2.78348,1854.5,1854.4,1.5434]
[1746126248180,1.07813,1854.4,1854.3,1.07818]
[1746126248377,1.07813,1854.4,1854.2,4.62323]
[1746126248378,1.07825,1854.3,1854.2,4.62323]
[1746126248677,2.52305,1854.3,1854.2,4.62323]
[1746126249773,1.4448,1854.3,1854.2,4.62323]
[1746126249974,2.52299,1854.3,1854.2,4.62323]
[1746126250274,3.1616,1854.3,1854.2,4.62323]
[1746126250466,4.23979,1854.3,1854.2,4.62323]
[1746126250873,3.1616,1854.3,1854.2,4.62323]
[1746126251279,4.23979,1854.3,1854.2,4.62323]
[1746126251880,4.23979,1854.3,1854.2,4.62325]
[1746126253185,3.1616,1854.3,1854.2,4.62325]
[1746126253783,4.23979,1854.3,1854.2,4.62325]
[1746126255182,10.32098315,1854.3,1854.2,4.62325]
[1746126255886,10.32098315,1854.3,1854.2,3.545]
[1746126256181,1.07825,1854.2,1854.1,3.542]
[1746126256382,5.95385,1854.2,1854.1,3.542]
[1746126257182,5.95385,1854.2,1854.1,4.62031]
[1746126257584,5.95385,1854.2,1854.1,3.542]
[1746126257780,5.95385,1854.2,1854.1,4.62031]
[1746126258478,5.95385,1854.2,1853.9,5.50255]
[1746126258479,1.07831,1854.1,1854.0,3.542]
[1746126258681,2.71971,1854.1,1854.0,4.62037]
[1746126259074,2.71971,1854.1,1854.0,3.542]
[1746126259583,2.71971,1854.1,1853.9,1.07838]
[1746126259584,1.07848,1853.9,1853.8,1.07848]
[1746126260275,2.71988,1853.9,1853.8,1.07848]
[1746126261589,1.07848,1853.8,1853.7,55.0405]
[1746126261781,2.66678,1853.8,1853.7,55.0405]
[1746126262300,2.66678,1853.8,1853.7,53.962]
[1746126262590,2.66678,1853.8,1853.7,55.04054]
[1746126269089,1.5883,1853.8,1853.7,55.04054]
[1746126269290,6.80696908,1853.9,1853.8,1.07848]
[1746126269491,3.59916908,1853.9,1853.8,5.92488]
[1746126269992,3.59916908,1853.9,1853.8,2.71708]
[1746126274297,1.6379,1854.0,1853.9,1.07842]
[1746126274499,1.6379,1854.0,1853.9,5.82842]
[1746126274695,13.52487908,1854.3,1854.2,1.07825]
[1746126274894,15.18507908,1854.3,1854.0,7.85519]
[1746126275194,1.6602,1854.2,1854.1,1.07831]
[1746126276098,3.59916908,1854.3,1854.2,1.07825]
[1746126276298,3.59916908,1854.3,1854.2,4.28605]
[1746126276299,2.49723908,1854.3,1854.2,4.28605]
[1746126276496,5.39369254,1854.4,1854.3,1.07819]
[1746126276696,5.39369254,1854.4,1854.3,9.59129]
[1746126276697,4.25201254,1854.4,1854.3,9.59129]
[1746126276899,3.11336254,1854.4,1854.3,14.59129]
[1746126277204,3.11336254,1854.4,1854.3,15.28129]
[1746126279191,0.87396254,1854.4,1854.3,15.28129]
[1746126279395,1.7347,1854.8,1854.7,1.07796]
[1746126279596,1.7347,1854.8,1854.7,4.61996]
[1746126280091,1.7347,1854.8,1854.7,7.82506]
[1746126291406,3.3504,1854.8,1854.7,7.82506]
[1746126298815,1.7347,1854.8,1854.7,7.82506]
[1746126299017,1.7347,1854.8,1854.7,9.56036]
[1746126308526,1.7347,1854.8,1854.7,7.82506]
[1746126311815,1.7347,1854.8,1854.7,7.49086]
[1746126312020,1.7347,1854.8,1854.7,4.61496]
[1746126312221,3.3473,1854.8,1854.7,4.61496]
[1746126314224,4.4252,1854.8,1854.7,3.537]
[1746126314428,1.07796,1854.7,1854.4,2.69531]
[1746126314627,4.32126,1854.7,1854.6,1.07802]
[1746126315328,1.07802,1854.6,1854.5,3.537]
[1746126315528,1.6502,1854.6,1854.5,4.61508]
[1746126315832,1.6502,1854.6,1854.5,1.07808]
[1746126316023,1.6502,1854.6,1854.5,4.61108]
[1746126316328,1.6502,1854.6,1854.5,1.07808]
[1746126316529,1.6502,1854.6,1854.5,4.61108]
[1746126316717,2.72822,1854.6,1854.5,4.61108]
[1746126317122,2.72822,1854.6,1854.5,3.533]
[1746126317627,3.2078,1854.8,1854.7,1.07796]
[1746126317822,10.12358,1855.0,1854.9,1.07784]
[1746126318124,10.12358,1855.0,1854.8,4.61085]
[1746126318424,1.5837,1854.9,1854.8,4.61085]
[1746126319123,2.66154,1854.9,1854.8,4.61085]
[1746126319424,1.5837,1854.9,1854.8,4.61085]
[1746126320530,2.66154,1854.9,1854.8,4.61085]
[1746126322533,3.34880564,1854.9,1854.8,4.61085]
[1746126323026,8.34880564,1854.9,1854.8,4.61085]
[1746126323231,8.34880564,1854.9,1854.8,3.533]
[1746126323832,1.0779,1854.8,1854.7,1.07791]
[1746126324133,1.0779,1854.8,1854.5,7.50226]
[1746126324134,1.078,1854.7,1854.6,4.61097]
[1746126327436,1.07802,1854.6,1854.5,3.533]
[1746126328334,1.07825,1854.2,1854.1,7.1841981]
[1746126328635,4.28605,1854.2,1854.1,7.1841981]
[1746126328935,9.28605,1854.2,1854.1,7.1841981]
[1746126329440,10.95525,1854.2,1854.1,7.1841981]
[1746126329936,10.95525,1854.2,1854.0,5.45606526]
[1746126329937,1.07831,1854.1,1854.0,5.45606526]
[1746126330238,1.07831,1854.1,1853.7,2.84936526]
[1746126330239,1.07848,1853.8,1853.7,2.84936526]
[1746126330430,4.28628,1853.8,1853.7,2.84936526]
[1746126330931,4.72555382,1853.8,1853.7,2.84936526]
[1746126331743,9.72555382,1853.8,1853.7,2.84936526]
[1746126332730,15.56355382,1853.8,1853.7,2.84936526]
[1746126334039,17.24275382,1853.8,1853.7,2.84936526]
[1746126335639,17.24275382,1853.8,1853.4,1.07871]
[1746126335640,1.0787,1853.5,1853.4,1.07871]
[1746126336036,1.07872,1853.4,1853.3,2.68813]
[1746126336238,2.79842,1853.4,1853.3,2.68813]
[1746126336540,1.7197,1853.4,1853.3,2.68813]
[1746126340744,1.4322,1853.5,1853.4,1.07872]
[1746126341050,5.68542,1853.6,1853.5,1.07866]
[1746126342049,5.68542,1853.6,1853.5,2.78996]
[1746126342753,7.40162,1853.6,1853.5,2.78996]
[1746126345753,7.83877654,1853.6,1853.5,2.78996]
[1746126346648,6.76015654,1853.6,1853.5,2.78996]
[1746126347254,3.64495654,1853.6,1853.5,2.78996]
[1746126348252,4.72355654,1853.6,1853.5,2.78996]
[1746126349948,3.64495654,1853.6,1853.5,2.78996]
[1746126350147,4.72355654,1853.6,1853.5,2.78996]
[1746126350556,1.07873,1853.5,1853.4,1.07868]
[1746126350753,1.07877,1853.4,1853.3,1.07874]
[1746126351054,1.07877,1853.4,1853.0,3.531]
[1746126351055,12.17988654,1853.4,1853.0,3.531]
[1746126351258,1.07889,1853.1,1853.0,4.60991]
[1746126351649,5.838,1853.1,1852.5,3.2078]
[1746126351849,5.90571,1852.7,1852.2,1.5738]
[1746126352151,5.90571,1852.7,1852.3,1.07931]
[1746126352152,1.07929,1852.5,1852.3,1.07931]
[1746126352357,4.28709,1852.5,1852.3,1.07931]
[1746126352551,4.28709,1852.5,1852.2,1.5738]
[1746126352856,1.51645654,1852.4,1852.3,1.07932]
[1746126353061,0.43715654,1852.4,1852.3,1.07932]
[1746126353258,4.28696,1852.7,1852.5,1.0792]
[1746126353458,4.28696,1852.7,1852.6,2.75708]
[1746126353953,4.72491931,1852.7,1852.6,2.75708]
[1746126354160,1.07918,1852.6,1852.5,1.07919]
[1746126354362,2.70878,1852.6,1852.5,1.07919]
[1746126354553,3.14673931,1852.6,1852.5,1.07919]
[1746126354753,3.14673931,1852.6,1852.5,1.6779]
[1746126355060,1.51713931,1852.6,1852.5,2.75714]
[1746126355562,1.51713931,1852.6,1852.5,1.6779]
[1746126357161,1.07924,1852.5,1852.4,1.4216]
[1746126357351,3.2078,1852.5,1852.3,3.0275]
[1746126357556,5.35055931,1852.5,1852.3,3.0275]
[1746126357754,1.51725931,1852.4,1852.3,3.0275]
[1746126357964,3.22205931,1852.4,1852.3,3.0275]
[1746126358166,1.07941,1852.2,1852.1,2.51627]
[1746126358856,1.51736931,1852.2,1852.1,2.51627]
[1746126359161,0.43795931,1852.2,1852.1,2.51627]
[1746126359961,0.43795931,1852.2,1852.1,4.22897]
[1746126362365,1.51736931,1852.2,1852.1,3.1495]
[1746126362565,3.11966931,1852.2,1852.1,1.7127]
[1746126363062,1.07949,1852.1,1851.9,4.61154]
[1746126363258,2.68181,1852.1,1851.9,6.26826]
[1746126363463,1.51748931,1852.0,1851.9,5.1887]
[1746126363664,3.11978931,1852.0,1851.9,6.26829]
[1746126363862,2.04025931,1852.0,1851.9,6.26829]
[1746126364162,3.11978931,1852.0,1851.9,5.1887]
[1746126364566,3.11978931,1852.0,1851.9,6.26829]
[1746126365466,3.11978931,1852.0,1851.8,4.6251]
[1746126365668,2.04025931,1852.0,1851.9,1.07959]
[1746126365965,0.43795931,1852.0,1851.9,1.07959]
[1746126366264,9.0458,1852.3,1851.9,1.07959]
[1746126366265,0.43795931,1852.2,1852.1,1.07947]
[1746126366467,1.51736931,1852.2,1852.1,1.07947]
[1746126366866,3.21396931,1852.2,1852.1,1.07947]
[1746126367471,3.21400931,1852.2,1852.1,1.07947]
[1746126367667,3.21400931,1852.2,1851.9,4.61256]
[1746126367668,1.07953,1852.0,1851.9,4.61256]
[1746126367966,1.07953,1852.0,1851.9,3.533]
[1746126368158,1.51748931,1852.0,1851.9,1.07959]
[1746126368359,4.35848931,1852.0,1851.9,1.07959]
[1746126368663,4.35851931,1852.0,1851.9,1.07959]
[1746126369871,3.27895931,1852.0,1851.9,1.07959]
[1746126370065,3.27895931,1852.0,1851.9,2.76059]
[1746126370266,6.09598931,1852.0,1851.9,2.76059]
[1746126370770,5.01645931,1852.0,1851.9,2.76059]
[1746126370966,6.09598931,1852.0,1851.9,2.76059]
[1746126371173,5.01645931,1852.0,1851.9,2.76059]
[1746126371470,6.09598931,1852.0,1851.9,2.76059]
[1746126373369,1.07959,1851.9,1851.8,5.7047]
[1746126373669,1.6626,1851.9,1851.8,1.09965]
[1746126373873,2.10055931,1851.9,1851.8,2.73575]
[1746126374171,3.18014931,1851.9,1851.8,2.73575]
[1746126374572,2.10055931,1851.9,1851.8,2.73575]
[1746126375277,0.43795931,1851.9,1851.8,2.73575]
[1746126375467,1.07947,1852.1,1852.0,1.07948]
[1746126375973,1.51756191,1852.1,1852.0,1.07948]
[1746126376474,2.11659191,1852.1,1852.0,1.07948]
[1746126377966,3.19606191,1852.1,1852.0,1.07948]
[1746126378268,2.11659191,1852.1,1852.0,1.07948]
[1746126378774,3.19606191,1852.1,1852.0,1.07948]
[1746126378974,2.11659191,1852.1,1852.0,1.07948]
[1746126379478,3.19606191,1852.1,1852.0,1.07948]
[1746126380581,2.11659191,1852.1,1852.0,1.07948]
[1746126380770,3.19606191,1852.1,1852.0,1.07948]
[1746126380970,2.11659191,1852.1,1852.0,1.07948]
[1746126381780,3.19606191,1852.1,1852.0,1.07948]
[1746126383379,3.19606191,1852.1,1851.9,1.7047]
[1746126383380,1.07953,1852.0,1851.9,1.07954]
[1746126383677,4.21633,1852.0,1851.9,1.07954]
[1746126383880,4.65442191,1852.0,1851.9,1.07954]
[1746126384383,1.07959,1851.9,1851.8,4.63062]
[1746126384678,4.02509,1851.9,1851.8,0.02]
[1746126385177,4.46318191,1851.9,1851.8,1.09965]
[1746126386978,3.38359191,1851.9,1851.8,1.09965]
[1746126387170,0.43809191,1851.9,1851.8,2.69105]
[1746126390577,1.91e-06,1851.9,1851.8,6.22205]
[1746126390786,5.35651219,1852.5,1852.4,1.0793]
[1746126391177,6.43575219,1852.5,1852.4,1.0793]
[1746126391582,5.35651219,1852.5,1852.4,1.0793]
[1746126392382,5.35651219,1852.5,1852.4,2.5558]
[1746126392687,2.76851,1852.6,1852.4,2.5558]
[1746126392988,2.76851,1852.6,1852.4,1.4765]
[1746126393286,2.76851,1852.6,1852.5,1.07924]
[1746126397186,1.6893,1852.6,1852.5,1.07924]
[1746126397482,5.97628,1852.6,1852.5,1.07924]
[1746126397682,1.6893,1852.6,1852.5,1.07924]
[1746126397883,4.8971,1852.6,1852.5,2.73364]
[1746126398087,2.76848,1852.6,1852.5,2.73364]
[1746126398782,1.6893,1852.6,1852.5,2.73364]
[1746126398987,5.838,1852.7,1852.6,1.07918]
[1746126399190,5.35651219,1852.9,1852.8,1.07906]
[1746126400086,5.35651219,1852.9,1852.8,2.71166]
[1746126400682,13.52824545,1853.0,1852.9,1.07901]
[1746126400887,14.60719545,1853.0,1852.9,2.71161]
[1746126402090,13.52824545,1853.0,1852.9,2.71161]
[1746126402288,14.60719545,1853.0,1852.9,2.71161]
[1746126402992,15.03708054,1853.0,1852.9,2.71161]
[1746126403179,13.95813054,1853.0,1852.9,2.71161]
[1746126403693,15.03708054,1853.0,1852.9,2.71161]
[1746126404187,13.95813054,1853.0,1852.9,2.71161]
[1746126404393,9.42613054,1853.0,1852.9,2.71161]
[1746126404590,8.99624545,1853.0,1852.9,2.71161]
[1746126404794,8.99624545,1853.0,1852.9,4.15811]
[1746126405193,9.43142665,1853.1,1853.0,1.07895]
[1746126405382,9.43142665,1853.1,1853.0,4.22505]
[1746126405583,9.86085927,1853.1,1853.0,4.22505]
[1746126407297,4.02285927,1853.1,1853.0,4.22505]
[1746126407493,4.02285927,1853.1,1852.9,2.52548]
[1746126407696,1.6145,1853.0,1852.9,2.52548]
[1746126407884,2.04393262,1853.0,1852.9,2.52548]
[1746126408795,2.04393262,1853.0,1852.9,4.21868]
[1746126408988,5.01792665,1853.1,1853.0,1.07895]
[1746126409196,5.44706209,1853.1,1853.0,2.77215]
[1746126409491,4.02256209,1853.1,1853.0,2.77215]
[1746126409689,4.02256209,1853.1,1853.0,9.50695]
[1746126409890,0.42913544,1853.1,1853.0,9.50695]
[1746126410090,6.71332665,1853.4,1853.3,1.07877]
[1746126410493,7.14235102,1853.4,1853.3,1.07877]
[1746126411294,8.22107102,1853.4,1853.3,1.07877]
[1746126411497,1.07877,1853.3,1853.2,2.77198]
[1746126411699,1.6706,1853.3,1853.2,1.07878]
[1746126411991,2.09962437,1853.3,1853.2,1.07878]
[1746126413596,3.17839437,1853.3,1853.2,1.07878]
[1746126413900,2.09962437,1853.3,1853.2,1.07878]
[1746126414592,2.09962437,1853.3,1853.2,2.69068]
[1746126416195,2.09962437,1853.3,1853.2,1.07878]
[1746126416900,5.30742437,1853.3,1853.2,1.07878]
[1746126418796,6.38619437,1853.3,1853.2,1.07878]
[1746126419895,6.38619437,1853.3,1853.1,1.7265]
[1746126419896,1.07883,1853.2,1853.1,1.07887]
[1746126420099,1.07889,1853.1,1853.0,4.6059]
[1746126420302,3.97769,1853.1,1853.0,4.6059]
[1746126420502,5.66379,1853.1,1853.0,4.6059]
[1746126420695,6.09281437,1853.1,1853.0,4.6059]
[1746126420896,5.01392437,1853.1,1853.0,4.6059]
[1746126421104,6.09281437,1853.1,1853.0,4.6059]
[1746126421505,5.01392437,1853.1,1853.0,4.6059]
[1746126421802,6.09281437,1853.1,1853.0,4.6059]
[1746126422195,1.07895,1853.0,1852.9,1.07898]
[1746126422504,1.07895,1853.0,1852.7,4.60607]
[1746126422505,1.07906,1852.8,1852.7,4.60607]
[1746126422808,4.28685,1852.9,1852.8,1.07904]
[1746126422996,5.97295,1852.9,1852.8,1.07904]
[1746126423392,1.07906,1852.8,1852.7,4.60607]
[1746126423608,4.6804643,1852.8,1852.7,4.60607]
[1746126424006,4.6804643,1852.8,1852.7,1.07907]
[1746126424201,4.6804643,1852.8,1852.6,1.07914]
[1746126424402,3.5455043,1852.7,1852.6,1.07914]
[1746126424904,4.6246243,1852.7,1852.6,1.07914]
[1746126425104,3.5455043,1852.7,1852.6,1.07914]
[1746126425404,1.07918,1852.6,1852.5,4.14891]
[1746126425609,1.721,1852.6,1852.5,1.07921]
[1746126426102,3.2305843,1852.6,1852.5,2.78501]
[1746126426293,3.2305843,1852.6,1852.5,1.07921]
[1746126426698,1.07924,1852.5,1852.4,6.00065]
[1746126426906,4.10344,1852.5,1852.4,6.00065]
[1746126427295,4.5338443,1852.5,1852.4,6.00065]
[1746126427998,4.5338443,1852.5,1852.4,1.07925]
[1746126428205,1.07936,1852.4,1852.3,1.07934]
[1746126428500,1.07941,1852.2,1852.1,6.20974]
[1746126428697,1.07941,1852.2,1852.1,3.527]
[1746126428900,1.5098143,1852.2,1852.1,3.527]
[1746126429103,3.5580043,1852.2,1852.1,4.60647]
[1746126429313,3.5580043,1852.2,1852.1,6.20977]
[1746126430204,4.6374143,1852.2,1852.1,6.20977]
[1746126430396,4.6374143,1852.2,1852.1,5.1303]
[1746126430601,4.6374143,1852.2,1852.1,6.20977]
[1746126430801,3.5580043,1852.2,1852.1,6.20977]
[1746126431008,4.6374143,1852.2,1852.1,6.20977]
[1746126433107,3.5580043,1852.2,1852.1,6.20977]
[1746126433305,1.5098143,1852.2,1852.1,3.527]
[1746126433511,4.5987143,1852.2,1852.1,4.60647]
[1746126434611,3.5193043,1852.2,1852.1,4.60647]
[1746126435310,3.5193043,1852.2,1852.1,1.07947]
[1746126437515,0.4304043,1852.2,1852.1,1.07947]
[1746126438013,2.57496,1852.3,1852.2,1.07941]
[1746126438609,2.57496,1852.3,1852.2,4.14741]
[1746126438814,10.17324,1852.4,1852.3,1.07936]
[1746126439015,10.60267172,1852.4,1852.3,2.70826]
[1746126439204,0.42943172,1852.4,1852.3,4.13836]
[1746126439408,0.42943172,1852.4,1852.3,7.34616]
[1746126439611,3.59342665,1852.5,1852.4,1.0793]
[1746126439817,3.59342665,1852.5,1852.4,2.7082]
[1746126440019,4.02284783,1852.5,1852.4,2.7082]
[1746126440314,5.10208783,1852.5,1852.4,2.7082]
[1746126440615,1.50866118,1852.5,1852.4,2.7082]
[1746126440813,3.24086118,1852.5,1852.4,2.7082]
[1746126442316,3.24086118,1852.5,1852.4,1.6289]
[1746126442513,1.0793,1852.4,1852.3,2.50943]
[1746126442715,1.0793,1852.4,1852.3,4.12833]
[1746126443011,3.17242118,1852.4,1852.3,4.12833]
[1746126443815,2.09312118,1852.4,1852.3,4.12833]
[1746126444209,0.42942118,1852.4,1852.3,4.12833]
[1746126444711,1.50869118,1852.5,1852.4,1.0793]
[1746126444916,1.50869118,1852.5,1852.4,2.7184]
[1746126448519,3.15129118,1852.5,1852.4,2.7184]
[1746126449316,3.15129118,1852.5,1852.4,1.0793]
[1746126449717,1.0793,1852.4,1852.3,4.09562]
[1746126449912,4.66432118,1852.4,1852.3,4.09562]
[1746126450117,1.07936,1852.3,1852.2,1.4391]
[1746126450323,1.07941,1852.2,1852.1,3.528]
[1746126450625,2.53451,1852.2,1852.1,1.07947]
[1746126450821,4.67483118,1852.2,1852.1,1.07947]
[1746126451024,3.59542118,1852.2,1852.1,1.07947]